bitfinex-derivatives/quotes_BNBF0:USTF0_20251010
["timestamp","ask_amount","ask_price","bid_price","bid_amount"]
[1760057439946,0.13809003,1261.6,1259.4,0.58905219]
[1760057440146,0.1968208,1259.5,1259.3,0.77779775]
[1760057440342,0.1968208,1259.5,1259.4,0.54383349]
[1760057441547,0.1968208,1259.5,1259.4,1.132513]
[1760057441749,0.1968208,1259.6,1259.4,0.54383349]
[1760057441945,0.1968208,1259.6,1259.5,1.1323371]
[1760057442450,0.1968208,1259.6,1259.5,0.54383349]
[1760057442942,0.1968208,1259.6,1259.5,1.13221264]
[1760057446347,0.1968208,1259.6,1259.5,0.54383349]
[1760057448148,0.1968208,1259.6,1259.5,1.13142309]
[1760057448353,0.1968208,1259.6,1259.5,0.54383349]
[1760057448855,0.1968208,1259.6,1259.5,1.1313354]
[1760057449150,0.1968208,1259.6,1259.5,0.54383349]
[1760057449353,0.13809003,1261.6,1259.5,1.1313354]
[1760057449554,0.13809003,1261.6,1259.6,0.54383349]
[1760057449753,0.13809003,1261.6,1259.7,0.54383349]
[1760057450054,0.13809003,1261.6,1259.8,0.54383349]
[1760057450254,0.13809003,1261.6,1259.5,0.58750191]
[1760057450255,0.13809003,1261.6,1259.9,0.54383349]
[1760057450554,0.13809003,1261.6,1260.0,0.54383349]
[1760057450753,0.13809003,1261.6,1259.5,0.58750191]
[1760057450950,0.19653376,1259.6,1259.5,0.58750191]
[1760057451153,0.19653376,1259.7,1259.5,1.32440244]
[1760057451350,0.19653376,1259.7,1259.6,0.54244729]
[1760057452753,0.13809003,1261.6,1259.6,0.54244729]
[1760057452954,0.13809003,1261.6,1259.7,0.54244729]
[1760057453251,0.13809003,1261.6,1259.8,0.54244729]
[1760057453453,0.13809003,1261.6,1259.9,0.54244729]
[1760057453655,0.13809003,1261.6,1260.0,0.54244729]
[1760057453949,0.13809003,1261.6,1259.4,0.58750191]
[1760057454153,0.13809003,1261.6,1259.5,0.54284445]
[1760057454352,0.13809003,1261.6,1259.6,0.54284445]
[1760057454551,0.13809003,1261.6,1259.4,0.58750191]
[1760057454552,0.13809003,1261.6,1259.7,0.54284445]
[1760057454749,0.13809003,1261.6,1259.8,0.54284445]
[1760057455049,0.13809003,1261.6,1259.9,0.54284445]
[1760057455251,0.13809003,1261.6,1260.0,0.54284445]
[1760057455451,0.13809003,1261.6,1259.4,0.58750191]
[1760057455654,0.19670031,1259.5,1259.3,0.19445324]
[1760057455850,0.19670031,1259.5,1259.4,0.54314436]
[1760057461662,0.19670031,1259.5,1259.4,1.13228148]
[1760057461962,0.13809003,1261.6,1259.4,1.13228148]
[1760057462160,0.13809003,1261.6,1259.5,0.54314436]
[1760057462358,0.13809003,1261.6,1259.6,0.54314436]
[1760057462661,0.13809003,1261.6,1259.7,0.54314436]
[1760057462856,0.13809003,1261.6,1259.2,0.58913712]
[1760057463059,0.13809003,1261.6,1259.3,0.54473292]
[1760057463359,0.13809003,1261.6,1259.4,0.54473292]
[1760057463557,0.13809003,1261.6,1259.3,0.58913712]
[1760057463558,0.13809003,1261.6,1259.5,0.54473292]
[1760057463756,0.13809003,1261.6,1259.6,0.54473292]
[1760057463960,0.13809003,1261.6,1259.7,0.54473292]
[1760057464163,0.13809003,1261.6,1259.2,0.58913712]
[1760057464463,0.13809003,1261.6,1259.3,0.54502671]
[1760057464665,0.13809003,1261.6,1259.4,0.54502671]
[1760057464859,0.13809003,1261.6,1259.5,0.54502671]
[1760057465064,0.13809003,1261.6,1259.6,0.54502671]
[1760057465266,0.13809003,1261.6,1259.7,0.54502671]
[1760057465463,0.13809003,1261.6,1259.2,0.58913712]
[1760057465667,0.13809003,1261.6,1259.3,0.54541745]
[1760057465865,0.13809003,1261.6,1259.4,0.54541745]
[1760057466064,0.13809003,1261.6,1259.5,0.54541745]
[1760057466263,0.13809003,1261.6,1259.6,0.54541745]
[1760057466462,0.13809003,1261.6,1259.7,0.54541745]
[1760057466666,0.13809003,1261.6,1259.2,0.58913712]
[1760057466966,0.13809003,1261.6,1259.3,0.54567549]
[1760057467169,0.13809003,1261.6,1259.4,0.54567549]
[1760057467470,0.13809003,1261.6,1259.5,0.54567549]
[1760057467766,0.13809003,1261.6,1259.6,0.54567549]
[1760057468069,0.13809003,1261.6,1259.7,0.54567549]
[1760057468269,0.13809003,1261.6,1259.2,0.58913712]
[1760057468467,0.13809003,1261.6,1259.3,0.54610597]
[1760057468665,0.13809003,1261.6,1259.4,0.54610597]
[1760057468868,0.13809003,1261.6,1259.5,0.54610597]
[1760057469066,0.13809003,1261.6,1259.6,0.54610597]
[1760057469271,0.13809003,1261.6,1259.1,0.58913712]
[1760057469568,0.13809003,1261.6,1259.2,0.54615503]
[1760057469767,0.13809003,1261.6,1259.3,0.54615503]
[1760057469968,0.13809003,1261.6,1259.4,0.54615503]
[1760057470166,0.13809003,1261.6,1259.5,0.54615503]
[1760057470367,0.13809003,1261.6,1259.6,0.54615503]
[1760057470566,0.13809003,1261.6,1259.1,0.58913712]
[1760057470767,0.13809003,1261.6,1259.2,0.5461885]
[1760057471070,0.13809003,1261.6,1259.3,0.5461885]
[1760057471268,0.13809003,1261.6,1259.4,0.5461885]
[1760057471466,0.13809003,1261.6,1259.5,0.5461885]
[1760057471671,0.13809003,1261.6,1259.6,0.5461885]
[1760057471872,0.13809003,1261.6,1259.1,0.58913712]
[1760057472169,0.13809003,1261.6,1259.2,0.54617554]
[1760057472368,0.13809003,1261.6,1259.3,0.54617554]
[1760057472572,0.13809003,1261.6,1259.4,0.54617554]
[1760057472770,0.13809003,1261.6,1259.5,0.54617554]
[1760057472970,0.13809003,1261.6,1259.0,0.58913712]
[1760057473173,0.13809003,1261.6,1259.1,0.54622861]
[1760057473373,0.13809003,1261.6,1259.2,0.54622861]
[1760057473571,0.13809003,1261.6,1259.3,0.54622861]
[1760057473770,0.13809003,1261.6,1259.4,0.54622861]
[1760057474069,0.13809003,1261.6,1259.0,0.58913712]
[1760057474274,0.13809003,1261.6,1259.1,0.54636078]
[1760057474472,0.13809003,1261.6,1259.2,0.54636078]
[1760057474669,0.13809003,1261.6,1259.3,0.54636078]
[1760057474871,0.13809003,1261.6,1259.4,0.54636078]
[1760057475071,0.13809003,1261.6,1259.0,0.58913712]
[1760057475372,0.13809003,1261.6,1259.1,0.546326]
[1760057475572,0.13809003,1261.6,1259.2,0.546326]
[1760057475772,0.13809003,1261.6,1259.3,0.546326]
[1760057475972,0.13809003,1261.6,1259.4,0.546326]
[1760057476171,0.13809003,1261.6,1259.0,0.58913712]
[1760057476374,0.13809003,1261.6,1259.1,0.54644856]
[1760057476574,0.13809003,1261.6,1259.2,0.54644856]
[1760057476774,0.13809003,1261.6,1259.3,0.54644856]
[1760057476976,0.13809003,1261.6,1259.4,0.54644856]
[1760057477177,0.13809003,1261.6,1259.0,0.58913712]
[1760057477374,0.19747598,1259.1,1259.0,0.58913712]
[1760057477574,0.19747598,1259.1,1259.0,1.13557022]
[1760057478472,0.19747598,1259.1,1259.0,0.5464331]
[1760057481877,0.19747598,1259.2,1259.0,0.5464331]
[1760057482081,0.19747598,1259.2,1258.9,0.19445324]
[1760057482082,0.19747598,1259.3,1259.1,0.5464331]
[1760057482276,0.19747598,1259.3,1259.2,1.13762513]
[1760057482776,0.19747598,1259.3,1259.2,0.5464331]
[1760057485483,0.19747598,1259.4,1259.2,0.5464331]
[1760057485683,0.19747598,1259.4,1259.3,1.13759781]
[1760057487583,0.19747598,1259.4,1259.3,0.5464331]
[1760057488481,0.19747598,1259.4,1259.3,1.13735329]
[1760057488884,0.13809003,1261.6,1259.3,1.13735329]
[1760057489083,0.13809003,1261.6,1259.4,0.5464331]
[1760057489285,0.13809003,1261.6,1259.5,0.5464331]
[1760057489584,0.13809003,1261.6,1259.6,0.5464331]
[1760057489881,0.13809003,1261.6,1259.7,0.5464331]
[1760057490081,0.13809003,1261.6,1259.8,0.5464331]
[1760057490281,0.13809003,1261.6,1259.9,0.5464331]
[1760057490481,0.13809003,1261.6,1259.3,0.59092019]
[1760057490684,0.13809003,1261.6,1259.4,0.54604494]
[1760057490884,0.13809003,1261.6,1259.5,0.54604494]
[1760057491080,0.13809003,1261.6,1259.6,0.54604494]
[1760057491284,0.13809003,1261.6,1259.7,0.54604494]
[1760057491582,0.13809003,1261.6,1259.8,0.54604494]
[1760057491885,0.13809003,1261.6,1259.9,0.54604494]
[1760057492081,0.13809003,1261.6,1259.4,0.59092019]
[1760057492280,0.13809003,1261.6,1259.5,0.54612863]
[1760057492479,0.13809003,1261.6,1259.6,0.54612863]
[1760057492680,0.13809003,1261.6,1259.7,0.54612863]
[1760057492884,0.13809003,1261.6,1259.8,0.54612863]
[1760057493084,0.13809003,1261.6,1259.9,0.54612863]
[1760057493282,0.13809003,1261.6,1259.4,0.59092019]
[1760057493584,0.13809003,1261.6,1259.5,0.5460981]
[1760057493882,0.13809003,1261.6,1259.6,0.5460981]
[1760057494082,0.13809003,1261.6,1259.7,0.5460981]
[1760057494287,0.13809003,1261.6,1259.8,0.5460981]
[1760057494583,0.13809003,1261.6,1259.9,0.5460981]
[1760057494788,0.13809003,1261.6,1259.3,0.59092019]
[1760057494984,0.13809003,1261.6,1259.4,0.54601249]
[1760057495187,0.13809003,1261.6,1259.5,0.54601249]
[1760057495388,0.13809003,1261.6,1259.6,0.54601249]
[1760057495586,0.13809003,1261.6,1259.7,0.54601249]
[1760057495784,0.13809003,1261.6,1259.8,0.54601249]
[1760057495990,0.13809003,1261.6,1259.9,0.54601249]
[1760057496187,0.13809003,1261.6,1259.1,0.59092019]
[1760057496386,0.13809003,1261.6,1259.2,0.5462301]
[1760057496591,0.13809003,1261.6,1259.3,0.5462301]
[1760057496890,0.13809003,1261.6,1259.4,0.5462301]
[1760057497088,0.13809003,1261.6,1259.5,0.5462301]
[1760057497286,0.13809003,1261.6,1259.6,0.5462301]
[1760057497487,0.13809003,1261.6,1259.7,0.5462301]
[1760057497686,0.13809003,1261.6,1259.1,0.59092019]
[1760057497886,0.13809003,1261.6,1259.2,0.54617397]
[1760057498091,0.13809003,1261.6,1259.3,0.54617397]
[1760057498390,0.13809003,1261.6,1259.4,0.54617397]
[1760057498589,0.13809003,1261.6,1259.5,0.54617397]
[1760057498786,0.13809003,1261.6,1259.6,0.54617397]
[1760057498987,0.13809003,1261.6,1259.7,0.54617397]
[1760057499192,0.13809003,1261.6,1259.1,0.59092019]
[1760057499392,0.13809003,1261.6,1259.2,0.54641126]
[1760057499592,0.13809003,1261.6,1259.3,0.54641126]
[1760057499788,0.13809003,1261.6,1259.4,0.54641126]
[1760057500092,0.13809003,1261.6,1259.5,0.54641126]
[1760057500290,0.13809003,1261.6,1259.6,0.54641126]
[1760057500493,0.13809003,1261.6,1259.7,0.54641126]
[1760057500691,0.13809003,1261.6,1259.2,0.59092019]
[1760057500891,0.13809003,1261.6,1259.3,0.54631144]
[1760057501092,0.13809003,1261.6,1259.4,0.54631144]
[1760057501392,0.13809003,1261.6,1259.5,0.54631144]
[1760057501591,0.13809003,1261.6,1259.6,0.54631144]
[1760057501794,0.13809003,1261.6,1259.7,0.54631144]
[1760057501995,0.13809003,1261.6,1259.8,0.54631144]
[1760057502196,0.13809003,1261.6,1259.9,0.54631144]
[1760057502393,0.13809003,1261.6,1259.3,0.59092019]
[1760057502597,0.13809003,1261.6,1259.4,0.54623444]
[1760057502795,0.13809003,1261.6,1259.5,0.54623444]
[1760057503099,0.13809003,1261.6,1259.0,0.19445324]
[1760057503396,0.13809003,1261.6,1259.1,0.54624046]
[1760057503397,0.19760039,1259.3,1259.1,0.54624046]
[1760057503594,0.19760039,1259.3,1259.2,0.54624046]
[1760057512502,0.19760039,1259.4,1259.2,0.54624046]
[1760057512700,0.19760039,1259.4,1259.3,0.54624046]
[1760057513305,0.19760039,1259.4,1259.3,1.51849145]
[1760057520414,0.39543172,1259.4,1259.3,0.54624046]
[1760057520610,0.19760039,1259.4,1259.3,0.54624046]
[1760057524115,0.19760039,1259.4,1259.3,1.13848092]
[1760057524522,0.19760039,1259.4,1259.3,0.54624046]
[1760057525224,0.19760039,1259.4,1259.3,1.13848591]
[1760057526921,0.19760039,1259.4,1259.3,0.54624046]
[1760057529922,0.39546563,1259.4,1259.3,0.54624046]
[1760057530128,0.19760039,1259.4,1259.3,0.54624046]
[1760057530730,0.19760039,1259.4,1259.3,0.7406937]
[1760057530930,0.19760039,1259.4,1259.3,1.90303519]
[1760057531229,0.19760039,1259.4,1259.3,1.70858195]
[1760057531627,0.19760039,1259.4,1259.3,0.54624046]
[1760057534930,0.39531447,1259.4,1259.3,0.54624046]
[1760057535226,0.39531447,1259.4,1259.3,1.33556909]
[1760057535431,0.39531447,1259.4,1259.3,1.53290124]
[1760057536431,0.39531447,1259.4,1259.3,0.74357261]
[1760057536625,0.39531447,1259.4,1259.3,0.54624046]
[1760057538228,0.39531447,1259.4,1259.3,1.3334483]
[1760057538630,0.39531447,1259.4,1259.3,0.54624046]
[1760057543832,0.39531447,1259.4,1259.1,1.18025462]
[1760057544134,0.39531447,1259.4,1259.2,0.5450685]
[1760057544336,0.39531447,1259.4,1259.3,0.5450685]
[1760057544535,0.39531447,1259.4,1259.3,1.33127724]
[1760057545933,0.39531447,1259.4,1259.3,0.5450685]
[1760057546335,0.39531447,1259.4,1259.3,1.33115324]
[1760057547038,0.39531447,1259.4,1259.3,0.5450685]
[1760057547540,0.39531447,1259.4,1259.3,1.72532312]
[1760057548340,0.39531447,1259.4,1259.3,0.5450685]
[1760057587069,0.39531447,1259.4,1259.3,1.71739169]
[1760057587265,0.39531447,1259.4,1259.3,0.5450685]
[1760057596275,0.39531447,1259.4,1259.3,2.50101477]
[1760057596877,0.39531447,1259.4,1259.3,0.5450685]
[1760057608981,0.22706479,1259.4,1259.3,0.5450685]
[1760057611185,0.22706479,1259.4,1259.3,2.5032614]
[1760057613284,0.22706479,1259.4,1259.3,0.5450685]
[1760057615485,0.19771408,1259.4,1259.3,0.5450685]
[1760057615788,0.13173229,1259.4,1259.3,2.50242301]
[1760057617190,0.13173229,1259.4,1259.3,0.5450685]
[1760057617891,0.13173229,1259.4,1259.3,2.5013128]
[1760057618490,0.13173229,1259.4,1259.3,0.5450685]
[1760057621689,0.29145209,1259.7,1259.3,0.5450685]
[1760057621890,0.29145209,1259.7,1259.4,0.5450685]
[1760057622093,0.29145209,1259.7,1259.5,0.5450685]
[1760057622394,0.29145209,1259.7,1259.6,0.5450685]
[1760057623089,0.29145209,1259.7,1259.6,3.2748011]
[1760057625295,0.29145209,1259.7,1259.6,0.5450685]
[1760057629593,0.29145209,1259.7,1259.6,1.71710357]
[1760057629794,0.29145209,1259.7,1259.6,0.5450685]
[1760057630097,0.29145209,1259.7,1259.6,0.74040767]
[1760057632502,0.29145209,1259.7,1259.6,0.5450685]
[1760057635600,0.29145209,1259.7,1259.6,0.74008006]
[1760057636800,0.29145209,1259.7,1259.6,1.90972641]
[1760057638001,0.29145209,1259.7,1259.6,0.74008006]
[1760057638207,0.29145209,1259.7,1259.6,1.51974492]
[1760057643208,0.29145209,1259.7,1259.6,1.32460718]
[1760057644904,0.29145209,1259.7,1259.6,0.74008006]
[1760057647812,0.29145209,1259.7,1259.6,1.32460718]
[1760057651112,0.29145209,1259.7,1259.6,0.74008006]
[1760057655411,0.29145209,1259.7,1259.6,1.32400208]
[1760057655609,0.29145209,1259.7,1259.6,1.12899052]
[1760057656513,0.29145209,1259.7,1259.6,0.5450685]
[1760057656710,0.29145209,1259.7,1259.6,1.32373174]
[1760057658716,0.29145209,1259.7,1259.6,0.5450685]
[1760057668328,0.09385861,1259.7,1259.6,0.5450685]
[1760057700846,0.09385861,1259.7,1259.6,1.12906607]
[1760057706150,0.29125593,1259.7,1259.6,0.5450685]
[1760057706446,0.09385861,1259.7,1259.6,0.5450685]
[1760057708553,0.29125593,1259.7,1259.6,0.5450685]
[1760057709648,0.29125593,1259.7,1259.6,1.13455501]
[1760057710448,0.29125593,1259.7,1259.6,0.5450685]
[1760057710653,0.29125593,1259.7,1259.6,1.13455501]
[1760057711247,0.29125593,1259.7,1259.6,0.5450685]
[1760057717348,0.09385861,1259.7,1259.6,0.5450685]
[1760057717551,0.29147467,1259.7,1259.6,0.5450685]
[1760057718051,0.09385861,1259.7,1259.6,0.5450685]
[1760057718351,0.29147314,1259.7,1259.6,0.5450685]
[1760057723552,0.09385861,1259.7,1259.6,0.5450685]
[1760057724357,0.09385861,1259.7,1258.8,0.78490621]
[1760057724552,0.19762829,1259.0,1258.9,0.53203023]
[1760057727457,0.19762829,1259.0,1258.9,1.12227077]
[1760057728457,0.19762829,1259.0,1258.9,0.53203023]
[1760057729357,0.09385861,1259.7,1258.9,1.12175128]
[1760057729358,0.19762829,1259.1,1258.9,1.12175128]
[1760057729558,0.19762829,1259.1,1259.0,1.12175128]
[1760057731960,0.19762829,1259.1,1259.0,0.53203023]
[1760057734562,0.19762829,1259.1,1259.0,1.12140294]
[1760057737159,0.19762829,1259.1,1259.0,0.53203023]
[1760057738063,0.19762829,1259.1,1259.0,1.12140294]
[1760057738663,0.19762829,1259.1,1259.0,0.53203023]
[1760057739064,0.09385861,1259.7,1259.0,0.53203023]
[1760057739263,0.09385861,1259.7,1259.1,0.53203023]
[1760057739464,0.09385861,1259.7,1258.8,0.58937271]
[1760057739465,0.09385861,1259.7,1259.2,0.53203023]
[1760057739664,0.09385861,1259.7,1259.3,0.53203023]
[1760057739861,0.09385861,1259.7,1258.8,0.58937271]
[1760057740065,0.19729661,1259.0,1258.9,0.53039156]
[1760057742665,0.19729661,1259.0,1258.9,1.11976427]
[1760057743165,0.19729661,1259.0,1258.9,0.53039156]
[1760057743366,0.09385861,1259.7,1258.9,0.53039156]
[1760057743568,0.09385861,1259.7,1259.0,0.53039156]
[1760057743768,0.09385861,1259.7,1259.1,0.53039156]
[1760057744069,0.09385861,1259.7,1259.2,0.53039156]
[1760057744262,0.09385861,1259.7,1258.8,0.58937271]
[1760057744567,0.09385861,1259.7,1258.9,0.5312208]
[1760057744768,0.09385861,1259.7,1259.0,0.5312208]
[1760057744968,0.09385861,1259.7,1259.1,0.5312208]
[1760057745263,0.09385861,1259.7,1259.2,0.5312208]
[1760057745466,0.09385861,1259.7,1258.8,0.58937271]
[1760057745663,0.19716633,1258.9,1258.8,0.58937271]
[1760057745863,0.19716633,1258.9,1258.8,1.12053496]
[1760057746167,0.19716633,1258.9,1258.8,0.53116225]
[1760057750274,0.09385861,1259.7,1258.8,0.53116225]
[1760057750474,0.09385861,1259.7,1258.9,0.53116225]
[1760057750775,0.09385861,1259.7,1259.0,0.53116225]
[1760057751070,0.09385861,1259.7,1259.1,0.53116225]
[1760057751269,0.09385861,1259.7,1259.2,0.53116225]
[1760057751473,0.09385861,1259.7,1258.7,0.58937271]
[1760057751674,0.09385861,1259.7,1258.8,1.12006613]
[1760057751874,0.09385861,1259.7,1258.9,0.53069342]
[1760057752075,0.09385861,1259.7,1259.0,0.53069342]
[1760057752275,0.09385861,1259.7,1258.8,0.58937271]
[1760057752276,0.09385861,1259.7,1259.1,0.53069342]
[1760057752473,0.09385861,1259.7,1259.2,0.53069342]
[1760057752675,0.09385861,1259.7,1258.8,0.58937271]
[1760057752873,0.09385861,1259.7,1258.9,0.5306266]
[1760057753173,0.09385861,1259.7,1259.0,0.5306266]
[1760057753372,0.09385861,1259.7,1259.1,0.5306266]
[1760057753572,0.09385861,1259.7,1259.2,0.5306266]
[1760057753872,0.09385861,1259.7,1258.8,0.58937271]
[1760057754076,0.09385861,1259.7,1258.9,0.53056234]
[1760057754273,0.09385861,1259.7,1259.0,0.53056234]
[1760057754576,0.09385861,1259.7,1259.1,0.53056234]
[1760057754773,0.09385861,1259.7,1259.2,0.53056234]
[1760057754973,0.09385861,1259.7,1258.6,0.78403838]
[1760057755173,0.19693533,1258.8,1258.7,0.53020028]
[1760057765984,0.09385861,1259.7,1258.7,1.11957299]
[1760057766184,0.09385861,1259.7,1258.8,0.53020028]
[1760057766385,0.09385861,1259.7,1258.9,0.53020028]
[1760057766580,0.09385861,1259.7,1259.0,0.53020028]
[1760057766784,0.09385861,1259.7,1258.6,0.58937271]
[1760057767085,0.09385861,1259.7,1258.7,0.52996533]
[1760057767280,0.09385861,1259.7,1258.8,0.52996533]
[1760057767486,0.09385861,1259.7,1258.9,0.52996533]
[1760057767686,0.09385861,1259.7,1259.0,0.52996533]
[1760057767884,0.09385861,1259.7,1258.6,0.58937271]
[1760057768087,0.09385861,1259.7,1258.7,0.53006251]
[1760057768287,0.09385861,1259.7,1258.6,0.58937271]
[1760057768288,0.09385861,1259.7,1258.8,0.53006251]
[1760057768487,0.09385861,1259.7,1258.6,0.58937271]
[1760057768488,0.09385861,1259.7,1258.9,0.53006251]
[1760057768790,0.09385861,1259.7,1259.0,0.53006251]
[1760057768990,0.09385861,1259.7,1258.6,0.58937271]
[1760057769184,0.09385861,1259.7,1258.7,0.53008922]
[1760057769388,0.09385861,1259.7,1258.8,0.53008922]
[1760057769594,0.09385861,1259.7,1258.9,0.53008922]
[1760057769793,0.09385861,1259.7,1259.0,0.53008922]
[1760057769994,0.09385861,1259.7,1258.6,0.58937271]
[1760057770199,0.09385861,1259.7,1258.7,0.53016587]
[1760057770394,0.09385861,1259.7,1258.8,0.53016587]
[1760057770595,0.09385861,1259.7,1258.9,0.53016587]
[1760057770793,0.09385861,1259.7,1259.0,0.53016587]
[1760057770996,0.09385861,1259.7,1258.6,0.58937271]
[1760057771196,0.09385861,1259.7,1258.7,0.53023681]
[1760057771496,0.09385861,1259.7,1258.8,0.53023681]
[1760057771693,0.09385861,1259.7,1258.9,0.53023681]
[1760057771891,0.09385861,1259.7,1259.0,0.53023681]
[1760057772096,0.09385861,1259.7,1258.6,0.58937271]
[1760057772297,0.09385861,1259.7,1258.7,0.53039016]
[1760057772596,0.09385861,1259.7,1258.8,0.53039016]
[1760057772797,0.09385861,1259.7,1258.9,0.53039016]
[1760057772995,0.09385861,1259.7,1259.0,0.53039016]
[1760057773195,0.09385861,1259.7,1258.6,0.58937271]
[1760057773400,0.09385861,1259.7,1258.7,0.53041107]
[1760057773598,0.09385861,1259.7,1258.6,0.58937271]
[1760057773599,0.09385861,1259.7,1258.8,0.53041107]
[1760057773798,0.09385861,1259.7,1258.9,0.53041107]
[1760057774100,0.09385861,1259.7,1259.0,0.53041107]
[1760057774300,0.09385861,1259.7,1258.6,0.58937271]
[1760057774501,0.09385861,1259.7,1258.7,0.53046523]
[1760057774701,0.09385861,1259.7,1258.8,0.53046523]
[1760057774902,0.09385861,1259.7,1258.9,0.53046523]
[1760057775100,0.09385861,1259.7,1259.0,0.53046523]
[1760057775297,0.09385861,1259.7,1258.6,0.58937271]
[1760057775600,0.09385861,1259.7,1258.7,0.53056055]
[1760057775800,0.09385861,1259.7,1258.8,0.53056055]
[1760057775998,0.09385861,1259.7,1258.9,0.53056055]
[1760057776198,0.09385861,1259.7,1259.0,0.53056055]
[1760057776402,0.09385861,1259.7,1258.5,0.58937271]
[1760057776603,0.19723773,1258.7,1258.6,0.53071258]
[1760057780199,0.09385861,1259.7,1258.6,0.53071258]
[1760057780404,0.09385861,1259.7,1258.7,0.53071258]
[1760057780704,0.09385861,1259.7,1258.8,0.53071258]
[1760057780901,0.09385861,1259.7,1258.9,0.53071258]
[1760057781099,0.09385861,1259.7,1259.0,0.53071258]
[1760057781303,0.09385861,1259.7,1259.1,0.53071258]
[1760057781603,0.09385861,1259.7,1258.5,0.58937271]
[1760057781803,0.09385861,1259.7,1258.6,0.53179846]
[1760057782100,0.09385861,1259.7,1258.7,0.53179846]
[1760057782299,0.09385861,1259.7,1258.8,0.53179846]
[1760057782502,0.09385861,1259.7,1258.9,0.53179846]
[1760057782701,0.09385861,1259.7,1259.0,0.53179846]
[1760057782900,0.09385861,1259.7,1259.1,0.53179846]
[1760057783100,0.09385861,1259.7,1258.6,0.58937271]
[1760057783303,0.09385861,1259.7,1258.7,0.53217752]
[1760057783504,0.09385861,1259.7,1258.6,0.58937271]
[1760057783505,0.09385861,1259.7,1258.8,0.53217752]
[1760057783800,0.09385861,1259.7,1258.9,0.53217752]
[1760057784004,0.09385861,1259.7,1259.0,0.53217752]
[1760057784204,0.09385861,1259.7,1259.1,0.53217752]
[1760057784407,0.09385861,1259.7,1258.7,0.58937271]
[1760057784601,0.09385861,1259.7,1258.8,0.53214459]
[1760057784903,0.09385861,1259.7,1258.9,0.53214459]
[1760057785102,0.09385861,1259.7,1259.0,0.53214459]
[1760057785401,0.09385861,1259.7,1259.1,0.53214459]
[1760057785605,0.09385861,1259.7,1258.7,0.58937271]
[1760057785900,0.09385861,1259.7,1258.8,0.53213028]
[1760057786104,0.09385861,1259.7,1258.9,0.53213028]
[1760057786301,0.09385861,1259.7,1259.0,0.53213028]
[1760057786505,0.09385861,1259.7,1259.1,0.53213028]
[1760057786806,0.09385861,1259.7,1258.7,0.58937271]
[1760057787007,0.09385861,1259.7,1258.8,0.53212822]
[1760057787201,0.09385861,1259.7,1258.9,0.53212822]
[1760057787502,0.09385861,1259.7,1258.5,0.58937271]
[1760057787800,0.09385861,1259.7,1258.6,0.53230403]
[1760057788000,0.09385861,1259.7,1258.7,0.53230403]
[1760057788206,0.09385861,1259.7,1258.8,0.53230403]
[1760057788504,0.09385861,1259.7,1258.9,0.53230403]
[1760057788703,0.09385861,1259.7,1258.5,0.58937271]
[1760057789006,0.09385861,1259.7,1258.6,0.53203686]
[1760057789202,0.09385861,1259.7,1258.7,0.53203686]
[1760057789402,0.09385861,1259.7,1258.5,0.58937271]
[1760057789403,0.09385861,1259.7,1258.8,0.53203686]
[1760057789604,0.09385861,1259.7,1258.9,0.53203686]
[1760057789807,0.09385861,1259.7,1258.5,0.58937271]
[1760057790004,0.09385861,1259.7,1258.6,0.53201897]
[1760057790208,0.09385861,1259.7,1258.7,0.53201897]
[1760057790505,0.09385861,1259.7,1258.8,0.53201897]
[1760057790711,0.09385861,1259.7,1258.9,0.53201897]
[1760057791009,0.09385861,1259.7,1259.0,0.53195663]
[1760057791208,0.09385861,1259.7,1259.1,0.53195663]
[1760057791406,0.09385861,1259.7,1258.4,0.58937271]
[1760057791606,0.09385861,1259.7,1258.5,0.53202138]
[1760057791811,0.09385861,1259.7,1258.6,0.53202138]
[1760057792012,0.09385861,1259.7,1258.7,0.53202138]
[1760057792209,0.09385861,1259.7,1258.8,0.53202138]
[1760057792413,0.09385861,1259.7,1258.9,0.53202138]
[1760057792611,0.09385861,1259.7,1259.0,0.53202138]
[1760057792814,0.09385861,1259.7,1258.3,0.58937271]
[1760057793014,0.09385861,1259.7,1258.2,0.19466567]
[1760057793015,0.1977719,1258.5,1258.4,1.1215094]
[1760057795313,0.1977719,1258.5,1258.4,0.53213669]
[1760057797619,0.13820959,1258.7,1258.4,0.53213669]
[1760057797919,0.13820959,1258.7,1258.5,1.12362055]
[1760057798116,0.13820959,1258.7,1258.6,0.53213669]
[1760057822040,0.13820959,1258.7,1258.6,0.53277436]
[1760057840049,0.13820959,1258.7,1258.0,0.59202761]
[1760057840344,0.13820959,1258.7,1258.1,0.53244043]
[1760057840549,0.13820959,1258.7,1258.2,0.53244043]
[1760057840746,0.13820959,1258.7,1258.3,0.53244043]
[1760057841053,0.13820959,1258.7,1257.6,0.59202761]
[1760057841245,0.13820959,1258.7,1257.7,0.53249686]
[1760057841449,0.13820959,1258.7,1257.8,0.53249686]
[1760057841646,0.13820959,1258.7,1257.9,0.53249686]
[1760057841951,0.13820959,1258.7,1258.0,0.53249686]
[1760057842151,0.13820959,1258.7,1257.7,0.59202761]
[1760057842352,0.13820959,1258.7,1257.8,0.53195714]
[1760057842553,0.13820959,1258.7,1257.9,0.53195714]
[1760057842752,0.13820959,1258.7,1258.0,0.53195714]
[1760057842948,0.13820959,1258.7,1258.1,0.53190447]
[1760057843151,0.13820959,1258.7,1257.7,0.59202761]
[1760057843349,0.13820959,1258.7,1257.8,0.53174728]
[1760057843648,0.13820959,1258.7,1257.9,0.53174728]
[1760057843950,0.13820959,1258.7,1258.0,0.53174728]
[1760057844153,0.13820959,1258.7,1258.1,0.53174728]
[1760057844352,0.13820959,1258.7,1257.7,0.59202761]
[1760057844551,0.13820959,1258.7,1257.8,0.53202356]
[1760057844751,0.13820959,1258.7,1257.9,0.53202356]
[1760057844950,0.13820959,1258.7,1258.0,0.53202356]
[1760057845153,0.13820959,1258.7,1257.7,0.59202761]
[1760057845355,0.13820959,1258.7,1257.8,0.5318961]
[1760057845555,0.13820959,1258.7,1257.9,0.5318961]
[1760057845752,0.13820959,1258.7,1258.0,0.5318961]
[1760057846053,0.13820959,1258.7,1257.6,0.59202761]
[1760057846252,0.13820959,1258.7,1257.7,0.53201374]
[1760057846451,0.13820959,1258.7,1257.8,0.53201374]
[1760057846652,0.13820959,1258.7,1257.9,0.53201374]
[1760057846856,0.13820959,1258.7,1258.0,0.53201374]
[1760057847050,0.13820959,1258.7,1257.4,0.78669328]
[1760057847256,0.19749685,1257.6,1257.5,0.53192293]
[1760057847656,0.13820959,1258.7,1257.5,0.53192293]
[1760057847858,0.13820959,1258.7,1257.6,0.53192293]
[1760057848057,0.13820959,1258.7,1257.7,0.53192293]
[1760057848258,0.13820959,1258.7,1257.8,0.53189188]
[1760057848459,0.13820959,1258.7,1257.2,0.78669328]
[1760057848761,0.19743047,1257.5,1257.3,1.12389783]
[1760057848959,0.19743047,1257.5,1257.4,0.53187022]
[1760057854362,0.19743047,1257.6,1257.4,0.53187022]
[1760057854562,0.19743047,1257.6,1257.5,0.53187022]
[1760057854858,0.19743047,1257.6,1257.5,1.12195925]
[1760057855762,0.19743047,1257.6,1257.5,0.53187022]
[1760057856260,0.13820959,1258.7,1257.5,0.53187022]
[1760057856559,0.13820959,1258.7,1257.6,0.53187022]
[1760057856760,0.13820959,1258.7,1257.7,0.53187022]